fUSD/lending_fUSD_20250107
["ID","MTS","AMOUNT","RATE_DAILY","PERIOD"]
[348059094,1736289032007,-1187.24449135,9.003e-05,3]
[348059095,1736289032017,-1187.24449135,9.003e-05,3]
[348059096,1736289032026,-150.0,9.003e-05,2]
[348059097,1736289032037,-1450.75729419,9.003e-05,3]
[348059098,1736289032047,-541.42,9.004e-05,2]
[348059099,1736289032056,-1896.89,9.004e-05,2]
[348059100,1736289032067,-500.0,9.004e-05,2]
[348059101,1736289032077,-1490.61,9.004e-05,2]
[348059102,1736289032086,-3044.23,9.004e-05,2]
[348059103,1736289032096,-2775.44,9.004e-05,2]
[348059104,1736289032105,-500.0,9.004e-05,2]
[348059105,1736289032115,-1436.91,9.004e-05,2]
[348059106,1736289032124,-1335.59,9.004e-05,2]
[348059107,1736289032134,-3430.74,9.004e-05,2]
[348059108,1736289032143,-503.24,9.004e-05,2]
[348059109,1736289032153,-2456.05,9.004e-05,2]
[348059110,1736289032162,-500.0,9.004e-05,2]
[348059111,1736289032172,-1820.41,9.004e-05,2]
[348059112,1736289032181,-1619.7,9.004e-05,2]
[348059113,1736289032191,-500.0,9.004e-05,2]
[348059114,1736289032200,-797.0,9.004e-05,2]
[348059115,1736289032210,-2919.25,9.004e-05,2]
[348059116,1736289032222,-500.0,9.004e-05,2]
[348059117,1736289032231,-500.0,9.004e-05,2]
[348059118,1736289032241,-500.0,9.004e-05,2]
[348059119,1736289032250,-500.0,9.004e-05,2]
[348059120,1736289032260,-500.0,9.004e-05,2]
[348059121,1736289032269,-500.0,9.004e-05,2]
[348059122,1736289032279,-1052.58,9.004e-05,2]
[348059123,1736289032288,-1473.52,9.004e-05,2]
[348059124,1736289032298,-500.0,9.004e-05,2]
[348059125,1736289032308,-500.0,9.004e-05,2]
[348059126,1736289032318,-868.91,9.004e-05,2]
[348059127,1736289032328,-1430.85,9.004e-05,2]
[348059128,1736289032338,-250.0,9.004e-05,2]
[348059129,1736289032348,-5689.84585176,9.004e-05,4]
[348059130,1736289032360,-1548.15415351,9.004e-05,4]
[348059131,1736289032403,-6377.91667051,9.004e-05,4]
[348059132,1736289032415,-4473.91131783,9.004e-05,4]
[348059133,1736289032427,-3116.2716893,9.004e-05,4]
[348059134,1736289032439,-338.89644,9.004e-05,4]
[348059138,1736289032475,-9566.17834997,9.004e-05,4]
[348059139,1736289032505,-21305.063629,9.004e-05,4]
[348059140,1736289032610,-11409.89582458,9.004e-05,4]
[348059141,1736289032622,-2527.85989938,9.004e-05,4]
[348059144,1736289037882,-279.61330346,9.004e-05,2]
[348059145,1736289037964,-1538.23669654,9.004e-05,2]
[348059146,1736289037974,-10512680.00617416,9.004e-05,4]
[348059147,1736289037984,-182.17861886,9.059e-05,2]
[348059148,1736289037996,-460.72428721,9.059e-05,2]
[348059149,1736289038006,-316.46,9.06e-05,2]
[348059150,1736289038015,-1000.0,9.088e-05,2]
[348059151,1736289038027,-250.0,9.138e-05,2]
[348059152,1736289038036,-444.61,9.138e-05,2]
[348059153,1736289038045,-298.31,9.138e-05,2]
[348059154,1736289038055,-1500.0,9.138e-05,2]
[348059155,1736289038067,-500.0,9.278e-05,2]
[348059156,1736289038077,-1490.61,9.278e-05,2]
[348059157,1736289038087,-3044.23,9.278e-05,2]
[348059158,1736289038097,-2775.44,9.278e-05,2]
[348059159,1736289038108,-500.0,9.278e-05,2]
[348059160,1736289038118,-1436.91,9.278e-05,2]
[348059161,1736289038128,-1335.59,9.278e-05,2]
[348059162,1736289038137,-3430.74,9.278e-05,2]
[348059163,1736289038147,-503.24,9.278e-05,2]
[348059164,1736289038156,-2456.05,9.278e-05,2]
[348059165,1736289038166,-500.0,9.278e-05,2]
[348059166,1736289038176,-1820.41,9.278e-05,2]
[348059167,1736289038186,-1619.7,9.278e-05,2]
[348059168,1736289038195,-500.0,9.278e-05,2]
[348059169,1736289038205,-797.0,9.278e-05,2]
[348059170,1736289038215,-2919.25,9.278e-05,2]
[348059171,1736289038224,-500.0,9.278e-05,2]
[348059172,1736289038234,-500.0,9.278e-05,2]
[348059173,1736289038244,-500.0,9.278e-05,2]
[348059174,1736289038254,-500.0,9.278e-05,2]
[348059175,1736289038264,-500.0,9.278e-05,2]
[348059176,1736289038273,-500.0,9.278e-05,2]
[348059177,1736289038283,-1052.58,9.278e-05,2]
[348059178,1736289038292,-1473.52,9.278e-05,2]
[348059179,1736289038302,-500.0,9.278e-05,2]
[348059180,1736289038312,-868.91,9.278e-05,2]
[348059181,1736289038321,-500.0,9.278e-05,2]
[348059182,1736289038331,-1430.85,9.278e-05,2]
[348059183,1736289038341,-1817.85,9.278e-05,2]
[348059184,1736289038351,-1543.2,9.341e-05,2]
[348059185,1736289038361,-437.76,9.341e-05,2]
[348059186,1736289038370,-217.556,9.5e-05,2]
[348059187,1736289038378,-500.0,9.552e-05,2]
[348059188,1736289038386,-1490.61,9.552e-05,2]
[348059189,1736289038396,-3044.23,9.552e-05,2]
[348059190,1736289038406,-2775.44,9.552e-05,2]
[348059191,1736289038415,-500.0,9.552e-05,2]
[348059192,1736289038425,-1436.91,9.552e-05,2]
[348059193,1736289038435,-1335.59,9.552e-05,2]
[348059194,1736289038445,-3430.74,9.552e-05,2]
[348059195,1736289038455,-503.24,9.552e-05,2]
[348059196,1736289038464,-2456.05,9.552e-05,2]
[348059197,1736289038473,-500.0,9.552e-05,2]
[348059198,1736289038483,-1820.41,9.552e-05,2]
[348059199,1736289038492,-1619.7,9.552e-05,2]
[348059200,1736289038502,-500.0,9.552e-05,2]
[348059201,1736289038512,-797.0,9.552e-05,2]
[348059202,1736289038522,-2919.25,9.552e-05,2]
[348059203,1736289038531,-500.0,9.552e-05,2]
[348059204,1736289038539,-500.0,9.552e-05,2]
[348059205,1736289038549,-180.89,9.552e-05,2]
[348059206,1736289038559,-500.0,9.552e-05,2]
[348059207,1736289038569,-393.57881692,9.552e-05,2]
[348059208,1736289038579,-500.0,9.552e-05,2]
[348059209,1736289038589,-1052.58,9.552e-05,2]
[348059210,1736289038599,-1473.52,9.552e-05,2]
[348059211,1736289038608,-500.0,9.552e-05,2]
[348059212,1736289038619,-868.91,9.552e-05,2]
[348059213,1736289038628,-500.0,9.552e-05,2]
[348059214,1736289038638,-1430.85,9.552e-05,2]
[348059215,1736289038647,-460.72428721,9.56e-05,2]
[348059216,1736289038657,-555.27669395,9.647e-05,2]
[348059217,1736289038667,-29999.99,9.67e-05,2]
[348059218,1736289038677,-1842.65,9.688e-05,2]
[348059219,1736289038686,-3776.53082574,9.786e-05,2]
[348059220,1736289038695,-2274.397,9.786e-05,2]
[348059221,1736289038705,-162.372,9.786e-05,2]
[348059222,1736289038714,-500.0,9.787e-05,2]
[348059223,1736289038723,-4705.84,9.787e-05,2]
[348059224,1736289038733,-3118.54,9.787e-05,2]
[348059225,1736289038742,-1836.96,9.787e-05,2]
[348059226,1736289038752,-1801.557458,9.787e-05,2]
[348059227,1736289038762,-159.403829,9.787e-05,2]
[348059228,1736289038771,-1984.669487,9.787e-05,2]
[348059229,1736289038781,-6376.17,9.787e-05,2]
[348059230,1736289038790,-1580.82,9.787e-05,2]
[348059231,1736289038799,-1179.69,9.787e-05,2]
[348059232,1736289038808,-1494.36,9.787e-05,2]
[348059233,1736289038818,-500.0,9.787e-05,2]
[348059234,1736289038827,-509.03,9.787e-05,2]
[348059235,1736289038836,-5128.61,9.787e-05,2]
[348059236,1736289038846,-500.0,9.787e-05,2]
[348059237,1736289038855,-2074.97,9.787e-05,2]
[348059238,1736289038864,-1924.25,9.787e-05,2]
[348059239,1736289038874,-1260.71,9.787e-05,2]
[348059240,1736289038884,-546.36128763,9.787e-05,2]
[348059241,1736289038893,-770.45,9.787e-05,2]
[348059242,1736289038903,-500.0,9.787e-05,2]
[348059243,1736289038912,-500.0,9.787e-05,2]
[348059244,1736289038922,-500.0,9.787e-05,2]
[348059245,1736289038932,-887.56,9.787e-05,2]
[348059246,1736289038941,-500.0,9.787e-05,2]
[348059247,1736289038950,-500.0,9.787e-05,2]
[348059248,1736289038960,-1085.95,9.787e-05,2]
[348059249,1736289038970,-500.0,9.787e-05,2]
[348059250,1736289038979,-1463.6,9.787e-05,2]
[348059251,1736289038991,-871.03,9.787e-05,2]
[348059252,1736289039001,-1018.34,9.787e-05,2]
[348059253,1736289039010,-905.35,9.787e-05,2]
[348059254,1736289039020,-500.0,9.787e-05,2]
[348059255,1736289039030,-978.09,9.787e-05,2]
[348059256,1736289039041,-1358.51,9.787e-05,2]
[348059257,1736289039053,-774.28,9.787e-05,2]
[348059258,1736289039065,-500.0,9.787e-05,2]
[348059259,1736289039074,-500.0,9.787e-05,2]
[348059260,1736289039084,-500.0,9.787e-05,2]
[348059261,1736289039094,-500.0,9.787e-05,2]
[348059262,1736289039103,-665.14,9.787e-05,2]
[348059263,1736289039113,-500.0,9.787e-05,2]
[348059264,1736289039123,-873.23,9.787e-05,2]
[348059265,1736289039132,-500.0,9.787e-05,2]
[348059266,1736289039141,-500.0,9.787e-05,2]
[348059267,1736289039151,-726.78,9.787e-05,2]
[348059268,1736289039160,-569.3,9.787e-05,2]
[348059269,1736289039169,-500.0,9.787e-05,2]
[348059270,1736289039179,-666.05,9.787e-05,2]
[348059271,1736289039188,-500.0,9.787e-05,2]
[348059272,1736289039197,-1888.16,9.787e-05,2]
[348059273,1736289039207,-1177.5,9.787e-05,2]
[348059274,1736289039216,-500.0,9.787e-05,2]
[348059275,1736289039226,-975.4,9.787e-05,2]
[348059276,1736289039236,-500.0,9.787e-05,2]
[348059277,1736289039246,-1061.84,9.787e-05,2]
[348059278,1736289039256,-502.53,9.787e-05,2]
[348059279,1736289039265,-758.25,9.787e-05,2]
[348059280,1736289039274,-543.41,9.787e-05,2]
[348059281,1736289039284,-500.0,9.787e-05,2]
[348059282,1736289039293,-500.0,9.787e-05,2]
[348059283,1736289039303,-500.0,9.787e-05,2]
[348059284,1736289039312,-2135.18,9.787e-05,2]
[348059285,1736289039322,-500.0,9.787e-05,2]
[348059286,1736289039331,-1249.43,9.787e-05,2]
[348059287,1736289039341,-630.23,9.787e-05,2]
[348059288,1736289039350,-1250.3,9.787e-05,2]
[348059289,1736289039359,-725.03,9.787e-05,2]
[348059290,1736289039368,-784.82,9.787e-05,2]
[348059291,1736289039378,-500.0,9.787e-05,2]
[348059292,1736289039387,-563.18,9.787e-05,2]
[348059293,1736289039397,-901.02,9.787e-05,2]
[348059294,1736289039406,-2536.85,9.787e-05,2]
[348059295,1736289039416,-965.12,9.787e-05,2]
[348059296,1736289039425,-500.34,9.787e-05,2]
[348059297,1736289039435,-500.0,9.787e-05,2]
[348059298,1736289039444,-500.0,9.787e-05,2]
[348059299,1736289039454,-500.0,9.787e-05,2]
[348059300,1736289039464,-1408.99,9.787e-05,2]
[348059301,1736289039474,-500.0,9.787e-05,2]
[348059302,1736289039485,-694.44,9.787e-05,2]
[348059303,1736289039495,-500.0,9.787e-05,2]
[348059304,1736289039504,-500.0,9.787e-05,2]
[348059305,1736289039514,-500.0,9.787e-05,2]
[348059306,1736289039523,-714.85,9.787e-05,2]
[348059307,1736289039533,-1161.61,9.787e-05,2]
[348059308,1736289039543,-653.73,9.787e-05,2]
[348059309,1736289039552,-1767.14,9.787e-05,2]
[348059310,1736289039562,-1272.55,9.787e-05,2]
[348059311,1736289039575,-852.68,9.787e-05,2]
[348059312,1736289039584,-500.0,9.787e-05,2]
[348059313,1736289039594,-603.18,9.787e-05,2]
[348059314,1736289039603,-798.2,9.787e-05,2]
[348059315,1736289039613,-500.0,9.787e-05,2]
[348059316,1736289039623,-500.0,9.787e-05,2]
[348059317,1736289039633,-500.0,9.787e-05,2]
[348059318,1736289039642,-500.0,9.787e-05,2]
[348059319,1736289039652,-581.59,9.787e-05,2]
[348059320,1736289039661,-1145.93,9.787e-05,2]
[348059321,1736289039670,-692.23,9.787e-05,2]
[348059322,1736289039680,-500.0,9.787e-05,2]
[348059323,1736289039689,-621.05,9.787e-05,2]
[348059324,1736289039699,-1335.35,9.787e-05,2]
[348059325,1736289039708,-4113.23,9.787e-05,2]
[348059326,1736289039718,-500.0,9.787e-05,2]
[348059327,1736289039728,-505.81,9.787e-05,2]
[348059329,1736289039925,-676.58,9.787e-05,2]
[348059330,1736289039935,-920.62,9.787e-05,2]
[348059331,1736289039944,-750.36,9.787e-05,2]
[348059332,1736289039953,-616.41,9.787e-05,2]
[348059333,1736289039963,-500.0,9.787e-05,2]
[348059334,1736289039972,-500.0,9.787e-05,2]
[348059335,1736289039981,-938.14,9.787e-05,2]
[348059336,1736289039994,-581.9,9.787e-05,2]
[348059337,1736289040003,-682.63,9.787e-05,2]
[348059338,1736289040012,-2206.26,9.787e-05,2]
[348059339,1736289040022,-436.7536754,9.787e-05,2]
[348059340,1736289040032,-1219.26,9.787e-05,2]
[348059341,1736289040042,-1298.36,9.787e-05,2]
[348059342,1736289040051,-906.79,9.787e-05,2]
[348059343,1736289040060,-500.0,9.787e-05,2]
[348059344,1736289040072,-728.63,9.787e-05,2]
[348059345,1736289040082,-721.69,9.787e-05,2]
[348059346,1736289040092,-1392.61,9.787e-05,2]
[348059347,1736289040101,-562.72,9.787e-05,2]
[348059348,1736289040110,-500.0,9.787e-05,2]
[348059349,1736289040120,-545.27,9.787e-05,2]
[348059350,1736289040130,-500.0,9.787e-05,2]
[348059351,1736289040139,-5915.85,9.787e-05,2]
[348059352,1736289040148,-1319.55,9.787e-05,2]
[348059353,1736289040159,-1199.74,9.787e-05,2]
[348059354,1736289040169,-500.0,9.787e-05,2]
[348059355,1736289040178,-500.0,9.787e-05,2]
[348059356,1736289040187,-500.0,9.787e-05,2]
[348059357,1736289040196,-1352.72,9.787e-05,2]
[348059358,1736289040206,-820.14,9.787e-05,2]
[348059359,1736289040215,-500.0,9.787e-05,2]
[348059360,1736289040224,-4685.7,9.787e-05,2]
[348059361,1736289040234,-526.8,9.787e-05,2]
[348059362,1736289040244,-826.52,9.787e-05,2]
[348059363,1736289040253,-1489.12,9.787e-05,2]
[348059364,1736289040263,-500.0,9.787e-05,2]
[348059365,1736289040272,-3461.51,9.787e-05,2]
[348059366,1736289040282,-1165.84,9.787e-05,2]
[348059367,1736289040292,-500.0,9.787e-05,2]
[348059368,1736289040301,-821.3,9.787e-05,2]
[348059369,1736289040310,-7521.47,9.787e-05,2]
[348059370,1736289040320,-532.47,9.787e-05,2]
[348059371,1736289040329,-650.14,9.787e-05,2]
[348059372,1736289040338,-1547.09,9.787e-05,2]
[348059373,1736289040347,-500.0,9.787e-05,2]
[348059374,1736289040356,-571.6,9.787e-05,2]
[348059375,1736289040366,-3835.85,9.787e-05,2]
[348059376,1736289040375,-9981.27,9.787e-05,2]
[348059377,1736289040386,-811.53,9.787e-05,2]
[348059378,1736289040395,-831.03,9.787e-05,2]
[348059379,1736289040405,-4892.11,9.787e-05,2]
[348059380,1736289040414,-1104.75,9.787e-05,2]
[348059382,1736289040425,-500.0,9.787e-05,2]
[348059383,1736289040435,-500.0,9.787e-05,2]
[348059384,1736289040445,-1323.97,9.787e-05,2]
[348059385,1736289040455,-1106.04,9.787e-05,2]
[348059386,1736289040465,-966.21,9.787e-05,2]
[348059387,1736289040475,-1629.82,9.787e-05,2]
[348059388,1736289040485,-929.03,9.787e-05,2]
[348059389,1736289040495,-500.0,9.787e-05,2]
[348059390,1736289040505,-623.66,9.787e-05,2]
[348059391,1736289040515,-1626.87,9.787e-05,2]
[348059392,1736289040524,-4948.26,9.787e-05,2]
[348059393,1736289040533,-500.0,9.787e-05,2]
[348059394,1736289040542,-2317.85,9.787e-05,2]
[348059395,1736289040552,-1220.07,9.787e-05,2]
[348059396,1736289040562,-1918.89,9.787e-05,2]
[348059397,1736289040573,-500.0,9.787e-05,2]
[348059398,1736289040583,-590.05,9.787e-05,2]
[348059399,1736289040593,-3471.56,9.787e-05,2]
[348059400,1736289040602,-773.12,9.787e-05,2]
[348059401,1736289040612,-1498.26,9.787e-05,2]
[348059402,1736289040622,-1043.23,9.787e-05,2]
[348059403,1736289040631,-853.94,9.787e-05,2]
[348059404,1736289040641,-1613.38,9.787e-05,2]
[348059405,1736289040650,-500.0,9.787e-05,2]
[348059406,1736289040660,-6167.82,9.787e-05,2]
[348059407,1736289040670,-500.0,9.787e-05,2]
[348059408,1736289040679,-697.3,9.787e-05,2]
[348059409,1736289040688,-2215.76,9.787e-05,2]
[348059410,1736289040698,-1550.3,9.787e-05,2]
[348059411,1736289040708,-734.81,9.787e-05,2]
[348059412,1736289040717,-5643.5,9.787e-05,2]
[348059413,1736289040727,-1533.95,9.787e-05,2]
[348059414,1736289040736,-1779.31,9.787e-05,2]
[348059415,1736289040746,-710.35,9.787e-05,2]
[348059416,1736289040756,-1282.73,9.787e-05,2]
[348059417,1736289040766,-1200.54,9.787e-05,2]
[348059418,1736289040776,-3391.47,9.787e-05,2]
[348059419,1736289040785,-708.64,9.787e-05,2]
[348059420,1736289040796,-1030.31,9.787e-05,2]
[348059421,1736289040806,-665.31,9.787e-05,2]
[348059422,1736289040816,-2731.7,9.787e-05,2]
[348059423,1736289040826,-1503.47,9.787e-05,2]
[348059424,1736289040835,-1245.05,9.787e-05,2]
[348059425,1736289040844,-500.0,9.787e-05,2]
[348059426,1736289040853,-613.58,9.787e-05,2]
[348059427,1736289040863,-500.0,9.787e-05,2]
[348059428,1736289040872,-500.0,9.787e-05,2]
[348059429,1736289040881,-904.46,9.787e-05,2]
[348059430,1736289040890,-765.83,9.787e-05,2]
[348059431,1736289040899,-1140.25,9.787e-05,2]
[348059432,1736289040908,-582.24,9.787e-05,2]
[348059433,1736289040917,-500.0,9.787e-05,2]
[348059434,1736289040927,-157.994958,9.787e-05,2]
[348059435,1736289040938,-500.0,9.787e-05,2]
[348059436,1736289040947,-1282.56,9.787e-05,2]
[348059437,1736289040957,-500.0,9.787e-05,2]
[348059438,1736289040966,-500.0,9.787e-05,2]
[348059439,1736289040976,-500.0,9.787e-05,2]
[348059440,1736289040987,-500.0,9.787e-05,2]
[348059441,1736289041000,-1210.65,9.787e-05,2]
[348059442,1736289041010,-686.85,9.787e-05,2]
[348059443,1736289041019,-500.0,9.788e-05,2]
[348059444,1736289041028,-500.0,9.788e-05,2]
[348059445,1736289041039,-500.0,9.788e-05,2]
[348059446,1736289041049,-500.0,9.788e-05,2]
[348059447,1736289041059,-617.04,9.788e-05,2]
[348059448,1736289041072,-500.0,9.788e-05,2]
[348059449,1736289041082,-500.0,9.788e-05,2]
[348059450,1736289041092,-500.0,9.788e-05,2]
[348059451,1736289041101,-500.0,9.788e-05,2]
[348059452,1736289041111,-500.0,9.788e-05,2]
[348059453,1736289041121,-500.0,9.788e-05,2]
[348059454,1736289041130,-500.0,9.788e-05,2]
[348059455,1736289041140,-500.0,9.788e-05,2]
[348059456,1736289041149,-418.77882656,9.788e-05,2]
[348059457,1736289041158,-500.0,9.788e-05,2]
[348059458,1736289041168,-500.0,9.788e-05,2]
[348059459,1736289041178,-500.0,9.788e-05,2]
[348059460,1736289041188,-500.0,9.788e-05,2]
[348059461,1736289041198,-500.0,9.788e-05,2]
[348059462,1736289041207,-500.0,9.788e-05,2]
[348059463,1736289041217,-500.0,9.788e-05,2]
[348059464,1736289041227,-500.0,9.788e-05,2]
[348059465,1736289041237,-500.0,9.788e-05,2]
[348059466,1736289041246,-500.0,9.788e-05,2]
[348059467,1736289041256,-500.0,9.788e-05,2]
[348059468,1736289041266,-500.0,9.788e-05,2]
[348059469,1736289041275,-500.0,9.788e-05,2]
[348059470,1736289041285,-511.88,9.788e-05,2]
[348059471,1736289041295,-500.0,9.788e-05,2]
[348059472,1736289041305,-500.0,9.788e-05,2]
[348059473,1736289041314,-250.47941875,9.788e-05,2]
[348059474,1736289041324,-500.0,9.788e-05,2]
[348059475,1736289041333,-500.0,9.788e-05,2]
[348059476,1736289041344,-500.0,9.788e-05,2]
[348059477,1736289041354,-500.0,9.788e-05,2]
[348059478,1736289041363,-500.0,9.788e-05,2]
[348059479,1736289041373,-500.0,9.788e-05,2]
[348059480,1736289041382,-265.77707939,9.788e-05,2]
[348059481,1736289041392,-500.0,9.788e-05,2]
[348059482,1736289041401,-500.0,9.788e-05,2]
[348059483,1736289041411,-500.0,9.788e-05,2]
[348059484,1736289041420,-500.0,9.788e-05,2]
[348059485,1736289041430,-531.81,9.788e-05,2]
[348059486,1736289041439,-500.0,9.788e-05,2]
[348059487,1736289041452,-500.0,9.788e-05,2]
[348059488,1736289041462,-500.0,9.788e-05,2]
[348059489,1736289041471,-500.0,9.788e-05,2]
[348059490,1736289041481,-500.0,9.788e-05,2]
[348059491,1736289041490,-500.0,9.788e-05,2]
[348059492,1736289041500,-500.0,9.788e-05,2]
[348059493,1736289041509,-500.0,9.788e-05,2]
[348059494,1736289041519,-500.0,9.788e-05,2]
[348059495,1736289041529,-243.47234988,9.788e-05,2]
[348059496,1736289041539,-500.0,9.788e-05,2]
[348059497,1736289041548,-500.0,9.788e-05,2]
[348059498,1736289041558,-500.0,9.788e-05,2]
[348059499,1736289041567,-500.0,9.788e-05,2]
[348059500,1736289041577,-516.53,9.788e-05,2]
[348059501,1736289041590,-500.0,9.788e-05,2]
[348059502,1736289041600,-500.0,9.788e-05,2]
[348059503,1736289041609,-500.0,9.788e-05,2]
[348059504,1736289041619,-500.0,9.788e-05,2]
[348059505,1736289041628,-500.0,9.788e-05,2]
[348059506,1736289041638,-500.0,9.788e-05,2]
[348059507,1736289041647,-500.0,9.788e-05,2]
[348059508,1736289041656,-940.18,9.788e-05,2]
[348059509,1736289041666,-630.65,9.788e-05,2]
[348059510,1736289041675,-500.0,9.788e-05,2]
[348059511,1736289041685,-268.35,9.788e-05,2]
[348059512,1736289041695,-500.0,9.788e-05,2]
[348059513,1736289041704,-500.0,9.788e-05,2]
[348059514,1736289041714,-500.0,9.788e-05,2]
[348059515,1736289041723,-625.57,9.788e-05,2]
[348059516,1736289041733,-500.0,9.788e-05,2]
[348059517,1736289041743,-644.24,9.788e-05,2]
[348059518,1736289041752,-1039.13,9.788e-05,2]
[348059519,1736289041762,-656.03,9.788e-05,2]
[348059520,1736289041771,-500.0,9.788e-05,2]
[348059521,1736289041781,-500.0,9.788e-05,2]
[348059522,1736289041790,-500.0,9.788e-05,2]
[348059523,1736289041800,-520.75,9.788e-05,2]
[348059524,1736289041810,-542.48,9.788e-05,2]
[348059525,1736289041819,-637.75,9.788e-05,2]
[348059526,1736289041828,-500.0,9.788e-05,2]
[348059527,1736289041837,-500.0,9.788e-05,2]
[348059528,1736289041847,-1110.5,9.788e-05,2]
[348059529,1736289041856,-1475.91,9.788e-05,2]
[348059530,1736289041866,-567.36,9.788e-05,2]
[348059531,1736289041876,-500.0,9.788e-05,2]
[348059532,1736289041886,-677.59,9.788e-05,2]
[348059533,1736289041895,-1381.43,9.788e-05,2]
[348059534,1736289041905,-913.76,9.788e-05,2]
[348059535,1736289041914,-500.0,9.788e-05,2]
[348059536,1736289041923,-761.5,9.788e-05,2]
[348059537,1736289041932,-1972.05,9.788e-05,2]
[348059538,1736289041942,-1238.14,9.788e-05,2]
[348059539,1736289041951,-500.0,9.788e-05,2]
[348059540,1736289041960,-500.0,9.788e-05,2]
[348059541,1736289041970,-524.35,9.788e-05,2]
[348059542,1736289041980,-2487.94,9.788e-05,2]
[348059543,1736289041992,-1501.55,9.788e-05,2]
[348059544,1736289042001,-1495.51,9.788e-05,2]
[348059545,1736289042010,-500.0,9.788e-05,2]
[348059546,1736289042019,-1619.55,9.788e-05,2]
[348059547,1736289042029,-516.76,9.788e-05,2]
[348059548,1736289042038,-676.75,9.788e-05,2]
[348059549,1736289042047,-2032.03,9.788e-05,2]
[348059550,1736289042056,-500.0,9.788e-05,2]
[348059551,1736289042066,-1108.9,9.788e-05,2]
[348059552,1736289042075,-500.0,9.788e-05,2]
[348059553,1736289042084,-500.0,9.788e-05,2]
[348059554,1736289042094,-615.92,9.788e-05,2]
[348059555,1736289042104,-549.58,9.788e-05,2]
[348059556,1736289042113,-6233.52,9.788e-05,2]
[348059557,1736289042123,-2790.08,9.788e-05,2]
[348059558,1736289042132,-2515.07,9.788e-05,2]
[348059559,1736289042142,-4426.47,9.788e-05,2]
[348059560,1736289042151,-2595.01,9.788e-05,2]
[348059561,1736289042161,-500.0,9.789e-05,2]
[348059562,1736289042170,-500.0,9.789e-05,2]
[348059563,1736289042180,-500.0,9.789e-05,2]
[348059564,1736289042189,-1327.37,9.789e-05,2]
[348059565,1736289042199,-500.0,9.789e-05,2]
[348059566,1736289042211,-154.27988211,9.789e-05,2]
[348059567,1736289042221,-500.0,9.789e-05,2]
[348059568,1736289042231,-500.0,9.789e-05,2]
[348059569,1736289042241,-500.0,9.789e-05,2]
[348059570,1736289042250,-500.0,9.789e-05,2]
[348059571,1736289042260,-500.0,9.789e-05,2]
[348059572,1736289042270,-500.0,9.789e-05,2]
[348059573,1736289042279,-500.0,9.789e-05,2]
[348059574,1736289042289,-500.0,9.789e-05,2]
[348059575,1736289042299,-500.0,9.789e-05,2]
[348059576,1736289042309,-504.77,9.789e-05,2]
[348059577,1736289042318,-500.0,9.789e-05,2]
[348059578,1736289042328,-638.96,9.789e-05,2]
[348059579,1736289042338,-4402.73,9.789e-05,2]
[348059580,1736289042347,-500.0,9.789e-05,2]
[348059581,1736289042357,-500.0,9.789e-05,2]
[348059582,1736289042367,-621.59,9.789e-05,2]
[348059583,1736289042376,-500.0,9.789e-05,2]
[348059584,1736289042386,-500.0,9.789e-05,2]
[348059585,1736289042395,-500.0,9.789e-05,2]
[348059586,1736289042405,-685.72,9.789e-05,2]
[348059587,1736289042414,-500.0,9.789e-05,2]
[348059588,1736289042424,-500.0,9.789e-05,2]
[348059589,1736289042434,-500.0,9.789e-05,2]
[348059590,1736289042443,-500.0,9.789e-05,2]
[348059591,1736289042452,-500.0,9.789e-05,2]
[348059592,1736289042462,-500.0,9.789e-05,2]
[348059593,1736289042471,-500.0,9.789e-05,2]
[348059594,1736289042483,-500.0,9.789e-05,2]
[348059595,1736289042492,-500.0,9.789e-05,2]
[348059596,1736289042502,-500.0,9.789e-05,2]
[348059597,1736289042511,-500.18,9.789e-05,2]
[348059598,1736289042521,-500.0,9.789e-05,2]
[348059599,1736289042531,-235.26,9.789e-05,2]
[348059600,1736289042540,-318.75,9.789e-05,2]